[Event "*** Titled Tuesday Blitz"]
[Site "Chess.com"]
[Date "2021.03.02"]
[Round "5"]
[White "champ2005"]
[Black "AttackSparrow"]
[Result "1-0"]
[WhiteElo "2991"]
[BlackElo "2543"]
[TimeControl "180+1"]
[EndTime "10:56:26 PST"]
[Termination "champ2005 won by resignation"]

1. d4 {[%clk 0:03:00.9]} 1... Nf6 {[%clk 0:02:58.7]} 2. Bf4 {[%clk 0:03:00.1]}
2... g6 {[%clk 0:02:54.1]} 3. Nc3 {[%clk 0:02:57.9]} 3... d5 {[%clk 0:02:53.4]}
4. e3 {[%clk 0:02:57.9]} 4... Bg7 {[%clk 0:02:53]} 5. h4 {[%clk 0:02:58.5]} 5...
a6 {[%clk 0:02:50.1]} 6. Nf3 {[%clk 0:02:57.9]} 6... c5 {[%clk 0:02:48.4]} 7.
Ne5 {[%clk 0:02:57.8]} 7... Nc6 {[%clk 0:02:45.3]} 8. Be2 {[%clk 0:02:57.6]}
8... h5 {[%clk 0:02:38.1]} 9. Qd2 {[%clk 0:02:53]} 9... Qa5 {[%clk 0:02:31.9]}
10. Nxc6 {[%clk 0:02:36.7]} 10... bxc6 {[%clk 0:02:32.8]} 11. Be5 {[%clk
0:02:37]} 11... O-O {[%clk 0:02:28.8]} 12. f3 {[%clk 0:02:16.5]} 12... cxd4
{[%clk 0:02:25.1]} 13. exd4 {[%clk 0:02:15.9]} 13... Rd8 {[%clk 0:02:01.7]} 14.
Bd3 {[%clk 0:01:59.8]} 14... c5 {[%clk 0:01:58.4]} 15. O-O-O {[%clk 0:01:15.5]}
15... cxd4 {[%clk 0:01:48.1]} 16. Bxd4 {[%clk 0:01:16.4]} 16... Rb8 {[%clk
0:01:42.5]} 17. Be5 {[%clk 0:01:00.5]} 17... Be6 {[%clk 0:01:16.6]} 18. a3
{[%clk 0:00:17.2]} 18... Qb6 {[%clk 0:00:59.7]} 19. Na4 {[%clk 0:00:09.9]} 19...
Qc6 {[%clk 0:00:59.5]} 20. Bxb8 {[%clk 0:00:08.5]} 20... Rxb8 {[%clk 0:01:00.1]}
21. Qa5 {[%clk 0:00:07.8]} 21... Bd7 {[%clk 0:00:52.8]} 22. Nc5 {[%clk
0:00:06.9]} 22... Ne4 {[%clk 0:00:21]} 23. Nb3 {[%clk 0:00:04.7]} 23... Nf2
{[%clk 0:00:18.5]} 24. Kb1 {[%clk 0:00:04.1]} 24... Nxh1 {[%clk 0:00:18]} 25.
Rxh1 {[%clk 0:00:03.5]} 25... Be6 {[%clk 0:00:17.7]} 26. Rd1 {[%clk 0:00:03.4]}
26... d4 {[%clk 0:00:17.8]} 27. Nc1 {[%clk 0:00:03.7]} 27... Qb7 {[%clk
0:00:16.8]} 28. b3 {[%clk 0:00:04.2]} 28... Ra8 {[%clk 0:00:15.3]} 29. Qb4
{[%clk 0:00:04.2]} 29... Qc7 {[%clk 0:00:14.4]} 30. Be4 {[%clk 0:00:03.9]} 30...
Rb8 {[%clk 0:00:14.3]} 31. Qd2 {[%clk 0:00:04.2]} 31... a5 {[%clk 0:00:13.7]}
32. Bd3 {[%clk 0:00:03.6]} 32... a4 {[%clk 0:00:13.7]} 33. b4 {[%clk 0:00:04.1]}
33... Qc6 {[%clk 0:00:13.5]} 34. Re1 {[%clk 0:00:04.4]} 34... Qd5 {[%clk
0:00:13.2]} 35. g4 {[%clk 0:00:04.7]} 35... hxg4 {[%clk 0:00:11.7]} 36. fxg4
{[%clk 0:00:05.6]} 36... Bxg4 {[%clk 0:00:11.9]} 37. Rxe7 {[%clk 0:00:06.3]}
37... Bf8 {[%clk 0:00:10.9]} 38. Re4 {[%clk 0:00:05.3]} 38... Bf5 {[%clk
0:00:10.5]} 39. Re1 {[%clk 0:00:05.7]} 39... Be6 {[%clk 0:00:10.8]} 40. h5
{[%clk 0:00:05.9]} 40... Qxh5 {[%clk 0:00:10]} 41. Rxe6 {[%clk 0:00:06.4]} 41...
fxe6 {[%clk 0:00:09.5]} 42. Bc4 {[%clk 0:00:07.3]} 42... Qf5 {[%clk 0:00:09.4]}
43. Nd3 {[%clk 0:00:07.7]} 43... Qf6 {[%clk 0:00:08.8]} 44. Qe2 {[%clk
0:00:08.1]} 44... Re8 {[%clk 0:00:08.7]} 45. Qe4 {[%clk 0:00:08.4]} 45... Bg7
{[%clk 0:00:08.9]} 46. Qc6 {[%clk 0:00:08.6]} 46... Qf1+ {[%clk 0:00:08.5]} 47.
Ka2 {[%clk 0:00:08.6]} 47... Qf6 {[%clk 0:00:09]} 48. Qxe8+ {[%clk 0:00:08.6]}
48... Kh7 {[%clk 0:00:08.8]} 49. Qxe6 {[%clk 0:00:08.9]} 49... Qf3 {[%clk
0:00:08]} 50. Qg8+ {[%clk 0:00:08.6]} 50... Kh6 {[%clk 0:00:07.8]} 51. Qd5
{[%clk 0:00:08.9]} 51... Qf1 {[%clk 0:00:06.9]} 52. Qe4 {[%clk 0:00:08.2]} 52...
Qd1 {[%clk 0:00:06.3]} 53. Qf4+ {[%clk 0:00:08.4]} 53... Kh7 {[%clk 0:00:06.2]}
54. Qh2+ {[%clk 0:00:08.9]} 54... Bh6 {[%clk 0:00:05.5]} 55. b5 {[%clk
0:00:09.3]} 55... Qf1 {[%clk 0:00:04.8]} 56. b6 {[%clk 0:00:09.2]} 56... Qf6
{[%clk 0:00:05.2]} 57. Qc7+ {[%clk 0:00:09.1]} 57... Bg7 {[%clk 0:00:05]} 58. b7
{[%clk 0:00:09.3]} 58... Qf2 {[%clk 0:00:01.2]} 59. Nxf2 {[%clk 0:00:08.7]}
59... Kh6 {[%clk 0:00:01.6]} 60. b8=Q {[%clk 0:00:09.6]} 1-0

[Event "*** Titled Tuesday Blitz"]
[Site "Chess.com"]
[Date "2021.03.02"]
[Round "5"]
[White "seorobert1971"]
[Black "Yaryi_sergey"]
[Result "1-0"]
[WhiteElo "2649"]
[BlackElo "2485"]
[TimeControl "180+1"]
[EndTime "10:56:27 PST"]
[Termination "seorobert1971 won on time"]

1. e4 {[%clk 0:03:00.9]} 1... c6 {[%clk 0:02:44.3]} 2. Nc3 {[%clk 0:03:01.8]}
2... g6 {[%clk 0:02:42.7]} 3. d4 {[%clk 0:03:01.4]} 3... Bg7 {[%clk 0:02:42.1]}
4. Be3 {[%clk 0:03:01.3]} 4... d5 {[%clk 0:02:40.6]} 5. Qd2 {[%clk 0:03:01]}
5... h5 {[%clk 0:02:38.6]} 6. f3 {[%clk 0:02:58.3]} 6... Nf6 {[%clk 0:02:33.2]}
7. h3 {[%clk 0:02:56.5]} 7... h4 {[%clk 0:02:27]} 8. Nge2 {[%clk 0:02:52.2]}
8... b5 {[%clk 0:02:24.2]} 9. e5 {[%clk 0:02:50.4]} 9... Ng8 {[%clk 0:02:22.9]}
10. Nc1 {[%clk 0:02:44.4]} 10... Nh6 {[%clk 0:02:22.2]} 11. Bd3 {[%clk 0:02:44]}
11... Nf5 {[%clk 0:02:20.4]} 12. Bxf5 {[%clk 0:02:43.8]} 12... Bxf5 {[%clk
0:02:19.6]} 13. Nd3 {[%clk 0:02:44]} 13... Nd7 {[%clk 0:02:18.3]} 14. O-O-O
{[%clk 0:02:42.2]} 14... a5 {[%clk 0:02:17.9]} 15. Kb1 {[%clk 0:02:41.4]} 15...
a4 {[%clk 0:02:16.6]} 16. Rhe1 {[%clk 0:02:35.3]} 16... Qb6 {[%clk 0:02:12.7]}
17. a3 {[%clk 0:02:29]} 17... Nf8 {[%clk 0:02:11.8]} 18. Na2 {[%clk 0:02:24.9]}
18... Ne6 {[%clk 0:02:11]} 19. Nab4 {[%clk 0:02:23.1]} 19... O-O-O {[%clk
0:01:57.3]} 20. Qc3 {[%clk 0:02:22.3]} 20... Kb7 {[%clk 0:01:51.6]} 21. Nc5+
{[%clk 0:02:15.5]} 21... Nxc5 {[%clk 0:01:50.7]} 22. dxc5 {[%clk 0:02:16.4]}
22... Qc7 {[%clk 0:01:48.3]} 23. Bd4 {[%clk 0:02:16.3]} 23... e6 {[%clk
0:01:45.5]} 24. Ka1 {[%clk 0:02:06.9]} 24... Ra8 {[%clk 0:01:42.8]} 25. Rd2
{[%clk 0:02:05.6]} 25... Rh5 {[%clk 0:01:39.6]} 26. Rde2 {[%clk 0:02:03.5]}
26... Qa5 {[%clk 0:01:36.8]} 27. Qd2 {[%clk 0:02:02.6]} 27... Bh6 {[%clk
0:01:35.4]} 28. Be3 {[%clk 0:02:00.5]} 28... Bf8 {[%clk 0:01:33.4]} 29. Qd4
{[%clk 0:01:56.2]} 29... Be7 {[%clk 0:01:28.8]} 30. Bf2 {[%clk 0:01:51.1]} 30...
Rah8 {[%clk 0:01:25.2]} 31. c3 {[%clk 0:01:48.5]} 31... Qc7 {[%clk 0:01:23.5]}
32. Nc2 {[%clk 0:01:41.7]} 32... Bf8 {[%clk 0:01:04.4]} 33. Ne3 {[%clk 0:01:38]}
33... Bg7 {[%clk 0:01:04.1]} 34. Ng4 {[%clk 0:01:34.3]} 34... g5 {[%clk
0:00:59.1]} 35. Nf6 {[%clk 0:01:27.9]} 35... Bxf6 {[%clk 0:00:55.9]} 36. exf6
{[%clk 0:01:27.8]} 36... Qf4 {[%clk 0:00:52.6]} 37. Qd1 {[%clk 0:01:20.3]} 37...
Qc4 {[%clk 0:00:48.4]} 38. Bd4 {[%clk 0:01:18.2]} 38... Qb3 {[%clk 0:00:42.9]}
39. Qd2 {[%clk 0:01:14.5]} 39... Rg8 {[%clk 0:00:38.9]} 40. Be5 {[%clk
0:01:13.6]} 40... Qc4 {[%clk 0:00:35.6]} 41. Bh2 {[%clk 0:01:09.6]} 41... Qd3
{[%clk 0:00:32.7]} 42. Qc1 {[%clk 0:01:08.4]} 42... Qc4 {[%clk 0:00:32.2]} 43.
Bd6 {[%clk 0:01:03.6]} 43... Ra8 {[%clk 0:00:26.3]} 44. Re5 {[%clk 0:01:00.9]}
44... Bg6 {[%clk 0:00:21.1]} 45. Rxg5 {[%clk 0:00:56.6]} 45... Rxg5 {[%clk
0:00:20.7]} 46. Qxg5 {[%clk 0:00:57.5]} 46... d4 {[%clk 0:00:20.6]} 47. Qxh4
{[%clk 0:00:51.6]} 47... dxc3 {[%clk 0:00:19.9]} 48. Qxc4 {[%clk 0:00:51]} 48...
cxb2+ {[%clk 0:00:19.7]} 49. Kxb2 {[%clk 0:00:51.1]} 49... bxc4 {[%clk
0:00:20.5]} 50. Kc3 {[%clk 0:00:50.8]} 50... Bd3 {[%clk 0:00:19.9]} 51. Rd1
{[%clk 0:00:48]} 51... Rg8 {[%clk 0:00:19.1]} 52. Rd2 {[%clk 0:00:47.2]} 52...
Rg6 {[%clk 0:00:17.6]} 53. Be5 {[%clk 0:00:46.3]} 53... Rg8 {[%clk 0:00:16.4]}
54. Rb2+ {[%clk 0:00:45.8]} 54... Ka6 {[%clk 0:00:15.8]} 55. Rb6+ {[%clk
0:00:45.2]} 55... Ka5 {[%clk 0:00:15.8]} 56. Bc7 {[%clk 0:00:37.4]} 56... Rc8
{[%clk 0:00:12.9]} 57. Bf4 {[%clk 0:00:34.2]} 57... Rg8 {[%clk 0:00:11.3]} 58.
g4 {[%clk 0:00:27.3]} 58... Rd8 {[%clk 0:00:09.1]} 59. Bc7 {[%clk 0:00:24.6]}
59... Rc8 {[%clk 0:00:08.5]} 60. Bg3 {[%clk 0:00:24.1]} 60... Re8 {[%clk
0:00:07.4]} 61. Be1 {[%clk 0:00:23.1]} 1-0

[Event "*** Titled Tuesday Blitz"]
[Site "Chess.com"]
[Date "2021.03.02"]
[Round "5"]
[White "Grandmaster1369"]
[Black "SamuelGhimpu2003"]
[Result "0-1"]
[WhiteElo "2423"]
[BlackElo "2641"]
[TimeControl "180+1"]
[EndTime "10:56:27 PST"]
[Termination "SamuelGhimpu2003 won by checkmate"]

1. e4 {[%clk 0:03:00.9]} 1... e6 {[%clk 0:02:55.3]} 2. d3 {[%clk 0:02:59.6]}
2... d5 {[%clk 0:02:55.9]} 3. Qe2 {[%clk 0:02:59.8]} 3... dxe4 {[%clk
0:02:43.5]} 4. dxe4 {[%clk 0:02:59.4]} 4... Nc6 {[%clk 0:02:44.1]} 5. c3 {[%clk
0:02:58.9]} 5... e5 {[%clk 0:02:41.9]} 6. Nf3 {[%clk 0:02:58.9]} 6... Nf6 {[%clk
0:02:41.7]} 7. g3 {[%clk 0:02:58.1]} 7... a5 {[%clk 0:02:38.9]} 8. Bg2 {[%clk
0:02:52.2]} 8... Bc5 {[%clk 0:02:38.9]} 9. O-O {[%clk 0:02:51.4]} 9... O-O
{[%clk 0:02:37.7]} 10. Rd1 {[%clk 0:02:47.8]} 10... Qe7 {[%clk 0:02:37.6]} 11.
Nbd2 {[%clk 0:02:44.8]} 11... b6 {[%clk 0:02:33.5]} 12. Nf1 {[%clk 0:02:37.9]}
12... Ba6 {[%clk 0:02:30.8]} 13. Qe1 {[%clk 0:02:35]} 13... Ng4 {[%clk
0:02:26.9]} 14. Ne3 {[%clk 0:02:24.8]} 14... Bxe3 {[%clk 0:02:14.3]} 15. Bxe3
{[%clk 0:02:25.7]} 15... Nxe3 {[%clk 0:02:13.8]} 16. Qxe3 {[%clk 0:02:26.4]}
16... Rad8 {[%clk 0:02:13.3]} 17. Rd5 {[%clk 0:02:18.8]} 17... Bc4 {[%clk
0:02:07.3]} 18. Rxd8 {[%clk 0:02:10.5]} 18... Rxd8 {[%clk 0:02:08.2]} 19. b3
{[%clk 0:02:11.3]} 19... Be6 {[%clk 0:02:03.6]} 20. h3 {[%clk 0:01:58.4]} 20...
Qd6 {[%clk 0:01:52.4]} 21. Ng5 {[%clk 0:01:50]} 21... Qd3 {[%clk 0:01:37.8]} 22.
Nxe6 {[%clk 0:01:42.1]} 22... Qxe3 {[%clk 0:01:36.4]} 23. fxe3 {[%clk 0:01:42]}
23... fxe6 {[%clk 0:01:37]} 24. Bf1 {[%clk 0:01:40.3]} 24... Kf7 {[%clk
0:01:35.8]} 25. Bc4 {[%clk 0:01:27.6]} 25... Rd2 {[%clk 0:01:30.9]} 26. Rf1+
{[%clk 0:01:27.1]} 26... Ke7 {[%clk 0:01:30]} 27. Rf2 {[%clk 0:01:28]} 27...
Rd1+ {[%clk 0:01:30]} 28. Rf1 {[%clk 0:01:24.5]} 28... Rd8 {[%clk 0:01:22.3]}
29. a4 {[%clk 0:01:20.8]} 29... Nb8 {[%clk 0:01:19.4]} 30. Rf2 {[%clk
0:01:14.3]} 30... Nd7 {[%clk 0:01:12.1]} 31. b4 {[%clk 0:01:13.9]} 31... Nf6
{[%clk 0:01:08]} 32. bxa5 {[%clk 0:01:06.9]} 32... bxa5 {[%clk 0:01:08.9]} 33.
Rb2 {[%clk 0:01:06.1]} 33... c6 {[%clk 0:01:06.1]} 34. Rb7+ {[%clk 0:01:00.7]}
34... Rd7 {[%clk 0:01:04.9]} 35. Rb6 {[%clk 0:00:53.7]} 35... Kd6 {[%clk
0:01:02.1]} 36. Bb5 {[%clk 0:00:44.2]} 36... Rc7 {[%clk 0:00:59]} 37. Bd3 {[%clk
0:00:44.9]} 37... Nd7 {[%clk 0:00:53.3]} 38. Rb1 {[%clk 0:00:37.8]} 38... Nc5
{[%clk 0:00:52.9]} 39. Bc2 {[%clk 0:00:35.4]} 39... Rb7 {[%clk 0:00:53.4]} 40.
Rd1+ {[%clk 0:00:33.9]} 40... Ke7 {[%clk 0:00:52.5]} 41. Rd2 {[%clk 0:00:28]}
41... Rb2 {[%clk 0:00:51.8]} 42. Rf2 {[%clk 0:00:24]} 42... Ra2 {[%clk
0:00:47.7]} 43. Bd1 {[%clk 0:00:20.2]} 43... Rxf2 {[%clk 0:00:45.5]} 44. Kxf2
{[%clk 0:00:21.1]} 44... Nxe4+ {[%clk 0:00:46.4]} 45. Kf3 {[%clk 0:00:21.7]}
45... Nxc3 {[%clk 0:00:47.3]} 46. Bc2 {[%clk 0:00:22]} 46... h6 {[%clk
0:00:41.3]} 47. h4 {[%clk 0:00:21.2]} 47... c5 {[%clk 0:00:34.1]} 48. e4 {[%clk
0:00:15.4]} 48... c4 {[%clk 0:00:32.7]} 49. Ke3 {[%clk 0:00:16.1]} 49... Kd6
{[%clk 0:00:32.5]} 50. Kd2 {[%clk 0:00:16.1]} 50... Na2 {[%clk 0:00:32.6]} 51.
Bd1 {[%clk 0:00:15]} 51... Kc5 {[%clk 0:00:32.2]} 52. Bg4 {[%clk 0:00:13.9]}
52... c3+ {[%clk 0:00:32.6]} 53. Kc2 {[%clk 0:00:13.8]} 53... Kd4 {[%clk
0:00:33.5]} 54. Bxe6 {[%clk 0:00:14]} 54... Nb4+ {[%clk 0:00:34.4]} 55. Kc1
{[%clk 0:00:14.6]} 55... Kxe4 {[%clk 0:00:34.8]} 56. g4 {[%clk 0:00:12.5]} 56...
Kf3 {[%clk 0:00:35.7]} 57. g5 {[%clk 0:00:12.7]} 57... hxg5 {[%clk 0:00:32.7]}
58. hxg5 {[%clk 0:00:12.7]} 58... e4 {[%clk 0:00:33.2]} 59. Kd1 {[%clk
0:00:11.3]} 59... e3 {[%clk 0:00:33.9]} 60. Bd7 {[%clk 0:00:10.9]} 60... e2+
{[%clk 0:00:33.4]} 61. Ke1 {[%clk 0:00:11.5]} 61... c2 {[%clk 0:00:34]} 62. Bc6+
{[%clk 0:00:09]} 62... Ke3 {[%clk 0:00:33.5]} 63. Be4 {[%clk 0:00:01.5]} 63...
c1=Q# {[%clk 0:00:34.4]} 0-1

[Event "*** Titled Tuesday Blitz"]
[Site "Chess.com"]
[Date "2021.03.02"]
[Round "5"]
[White "Murad_Ibrahimli"]
[Black "mishanick"]
[Result "1/2-1/2"]
[WhiteElo "2865"]
[BlackElo "3016"]
[TimeControl "180+1"]
[EndTime "10:56:30 PST"]
[Termination "Game drawn - insufficient material"]

1. d4 {[%clk 0:03:00.9]} 1... Nf6 {[%clk 0:02:58.9]} 2. c4 {[%clk 0:03:00.9]}
2... e6 {[%clk 0:02:58.9]} 3. Nf3 {[%clk 0:03:01.2]} 3... d5 {[%clk 0:02:59.4]}
4. Nc3 {[%clk 0:03:00.2]} 4... c5 {[%clk 0:02:56.5]} 5. cxd5 {[%clk 0:02:59.6]}
5... cxd4 {[%clk 0:02:56.9]} 6. Qxd4 {[%clk 0:02:58.3]} 6... exd5 {[%clk
0:02:57.2]} 7. e4 {[%clk 0:02:47.4]} 7... dxe4 {[%clk 0:02:58.1]} 8. Qxd8+
{[%clk 0:02:47.2]} 8... Kxd8 {[%clk 0:02:59]} 9. Ng5 {[%clk 0:02:47.5]} 9... Be6
{[%clk 0:02:59.6]} 10. Bb5 {[%clk 0:02:44.4]} 10... Bb4 {[%clk 0:02:49]} 11. Bd2
{[%clk 0:02:37.7]} 11... Ke7 {[%clk 0:02:47]} 12. a3 {[%clk 0:02:29.9]} 12...
Ba5 {[%clk 0:02:41.8]} 13. O-O {[%clk 0:02:25.7]} 13... Rd8 {[%clk 0:02:39.8]}
14. Be3 {[%clk 0:02:16.3]} 14... Bb6 {[%clk 0:02:06.8]} 15. Bxb6 {[%clk
0:02:11.9]} 15... axb6 {[%clk 0:02:07.7]} 16. Ngxe4 {[%clk 0:02:10.6]} 16...
Nxe4 {[%clk 0:02:05.4]} 17. Nxe4 {[%clk 0:02:10.9]} 17... Nc6 {[%clk 0:02:02.3]}
18. Ng5 {[%clk 0:01:56.7]} 18... Bf5 {[%clk 0:01:46.7]} 19. Rfe1+ {[%clk
0:01:47.1]} 19... Kf8 {[%clk 0:01:43.1]} 20. Bc4 {[%clk 0:01:46.7]} 20... Bg6
{[%clk 0:01:38.6]} 21. h4 {[%clk 0:01:40.9]} 21... Nd4 {[%clk 0:01:31.7]} 22.
Rad1 {[%clk 0:01:39]} 22... Rac8 {[%clk 0:01:23.3]} 23. Ba2 {[%clk 0:01:18.8]}
23... h6 {[%clk 0:01:14.3]} 24. Nh3 {[%clk 0:01:06]} 24... Bh5 {[%clk
0:01:02.1]} 25. f3 {[%clk 0:00:52.1]} 25... Bxf3 {[%clk 0:00:57.9]} 26. Rd2
{[%clk 0:00:28.9]} 26... Bg4 {[%clk 0:00:34.7]} 27. Rf2 {[%clk 0:00:26]} 27...
Rc7 {[%clk 0:00:25.3]} 28. Nf4 {[%clk 0:00:25.9]} 28... Kg8 {[%clk 0:00:23.2]}
29. Ng6 {[%clk 0:00:25.4]} 29... Be6 {[%clk 0:00:21.6]} 30. Bxe6 {[%clk
0:00:24.6]} 30... Nxe6 {[%clk 0:00:22.2]} 31. Ne5 {[%clk 0:00:25.1]} 31... Nc5
{[%clk 0:00:21]} 32. Rc1 {[%clk 0:00:23.9]} 32... Re7 {[%clk 0:00:20]} 33. Nc4
{[%clk 0:00:19.5]} 33... b5 {[%clk 0:00:17.9]} 34. Na5 {[%clk 0:00:16.5]} 34...
Nd3 {[%clk 0:00:17.4]} 35. Rd1 {[%clk 0:00:16.8]} 35... Red7 {[%clk 0:00:15.2]}
36. Rfd2 {[%clk 0:00:16.7]} 36... Kf8 {[%clk 0:00:14.8]} 37. Nxb7 {[%clk
0:00:16.4]} 37... Rxb7 {[%clk 0:00:14.4]} 38. Rxd3 {[%clk 0:00:17]} 38... Re8
{[%clk 0:00:14.9]} 39. Rd8 {[%clk 0:00:16.2]} 39... Rc7 {[%clk 0:00:11.8]} 40.
Rxe8+ {[%clk 0:00:16.4]} 40... Kxe8 {[%clk 0:00:12.7]} 41. Rd2 {[%clk
0:00:16.9]} 41... Rc4 {[%clk 0:00:12.8]} 42. g3 {[%clk 0:00:16.4]} 42... b4
{[%clk 0:00:13.4]} 43. axb4 {[%clk 0:00:16.2]} 43... Rxb4 {[%clk 0:00:14.3]} 44.
Kg2 {[%clk 0:00:16.9]} 44... Ke7 {[%clk 0:00:14.8]} 45. Re2+ {[%clk 0:00:17.2]}
45... Kf6 {[%clk 0:00:15.1]} 46. Rf2+ {[%clk 0:00:17.7]} 46... Kg6 {[%clk
0:00:15.8]} 47. Kh3 {[%clk 0:00:18.1]} 47... h5 {[%clk 0:00:15.8]} 48. Kg2
{[%clk 0:00:18.3]} 48... f6 {[%clk 0:00:15.9]} 49. Rc2 {[%clk 0:00:18.6]} 49...
Kf5 {[%clk 0:00:15.3]} 50. Rf2+ {[%clk 0:00:18.5]} 50... Kg4 {[%clk 0:00:15.1]}
51. Re2 {[%clk 0:00:16.9]} 51... Rc4 {[%clk 0:00:11.8]} 52. Rd2 {[%clk
0:00:16.6]} 52... Re4 {[%clk 0:00:12]} 53. Rf2 {[%clk 0:00:15.9]} 53... Rb4
{[%clk 0:00:11.6]} 54. Rd2 {[%clk 0:00:16.2]} 54... g5 {[%clk 0:00:10.6]} 55.
hxg5 {[%clk 0:00:15.8]} 55... fxg5 {[%clk 0:00:11.2]} 56. Rc2 {[%clk 0:00:15.8]}
56... Rd4 {[%clk 0:00:11.2]} 57. Re2 {[%clk 0:00:15.7]} 57... Rc4 {[%clk
0:00:11.5]} 58. Rd2 {[%clk 0:00:15.6]} 58... Rb4 {[%clk 0:00:11.7]} 59. Rc2
{[%clk 0:00:15.7]} 59... Ra4 {[%clk 0:00:12.3]} 60. b3 {[%clk 0:00:14.9]} 60...
Rb4 {[%clk 0:00:12]} 61. Rc4+ {[%clk 0:00:15.2]} 61... Rxc4 {[%clk 0:00:11.5]}
62. bxc4 {[%clk 0:00:16.1]} 62... Kf5 {[%clk 0:00:12.1]} 63. Kf3 {[%clk
0:00:16]} 63... Ke5 {[%clk 0:00:12.6]} 64. Ke3 {[%clk 0:00:15.9]} 64... Kd6
{[%clk 0:00:09.5]} 65. Ke4 {[%clk 0:00:15.4]} 65... h4 {[%clk 0:00:09.3]} 66.
gxh4 {[%clk 0:00:15.3]} 66... gxh4 {[%clk 0:00:10.2]} 67. Kf4 {[%clk 0:00:15.9]}
67... Kc5 {[%clk 0:00:10.8]} 68. Kg4 {[%clk 0:00:16.2]} 68... Kxc4 {[%clk
0:00:11.7]} 69. Kxh4 {[%clk 0:00:16.7]} 1/2-1/2

[Event "*** Titled Tuesday Blitz"]
[Site "Chess.com"]
[Date "2021.03.02"]
[Round "5"]
[White "Alexandercs432"]
[Black "niki_2003"]
[Result "0-1"]
[WhiteElo "2199"]
[BlackElo "2013"]
[TimeControl "180+1"]
[EndTime "10:56:34 PST"]
[Termination "niki_2003 won by checkmate"]

1. e4 {[%clk 0:02:50.3]} 1... c6 {[%clk 0:02:57.1]} 2. d4 {[%clk 0:02:48.9]}
2... d5 {[%clk 0:02:56.3]} 3. e5 {[%clk 0:02:49.4]} 3... Bf5 {[%clk 0:02:54.9]}
4. h4 {[%clk 0:02:49.9]} 4... h6 {[%clk 0:02:52.1]} 5. g4 {[%clk 0:02:49.4]}
5... Bh7 {[%clk 0:02:51.7]} 6. e6 {[%clk 0:02:48.5]} 6... fxe6 {[%clk
0:02:36.9]} 7. Bd3 {[%clk 0:02:48.8]} 7... Nf6 {[%clk 0:02:29.9]} 8. h5 {[%clk
0:02:42.8]} 8... Nbd7 {[%clk 0:02:17.4]} 9. f4 {[%clk 0:02:39.6]} 9... Bxd3
{[%clk 0:02:09.4]} 10. Qxd3 {[%clk 0:02:40.5]} 10... Ne4 {[%clk 0:02:09.2]} 11.
Nf3 {[%clk 0:02:37.4]} 11... Qc7 {[%clk 0:02:07.9]} 12. Nc3 {[%clk 0:02:31.5]}
12... Nxc3 {[%clk 0:01:30.4]} 13. Qxc3 {[%clk 0:02:32.4]} 13... O-O-O {[%clk
0:01:29.5]} 14. Be3 {[%clk 0:02:24]} 14... Nf6 {[%clk 0:01:27.2]} 15. Ne5 {[%clk
0:02:16.5]} 15... Ne4 {[%clk 0:01:19.7]} 16. Qd3 {[%clk 0:02:15]} 16... Rg8
{[%clk 0:01:09.2]} 17. O-O-O {[%clk 0:02:07.6]} 17... g5 {[%clk 0:00:57.8]} 18.
hxg6 {[%clk 0:02:08.5]} 18... Bg7 {[%clk 0:00:55.7]} 19. Nf7 {[%clk 0:01:52.5]}
19... Rdf8 {[%clk 0:00:48.4]} 20. Nxh6 {[%clk 0:01:51.6]} 20... Bxh6 {[%clk
0:00:40.6]} 21. Rxh6 {[%clk 0:01:52.5]} 21... Rxf4 {[%clk 0:00:37.8]} 22. Rg1
{[%clk 0:01:38.8]} 22... Rf6 {[%clk 0:00:29.1]} 23. Qa3 {[%clk 0:01:17.4]} 23...
Kb8 {[%clk 0:00:17.9]} 24. Kb1 {[%clk 0:01:16.8]} 24... Rgf8 {[%clk 0:00:16.9]}
25. Rhh1 {[%clk 0:01:02.3]} 25... Ng3 {[%clk 0:00:15]} 26. Rxg3 {[%clk
0:00:17.7]} 26... Qxg3 {[%clk 0:00:13.7]} 27. Bc1 {[%clk 0:00:13.6]} 27... Qxg4
{[%clk 0:00:12.1]} 28. Qxe7 {[%clk 0:00:11.3]} 28... Qxg6 {[%clk 0:00:10.5]} 29.
Rh7 {[%clk 0:00:09.3]} 29... R6f7 {[%clk 0:00:09]} 30. Qd6+ {[%clk 0:00:09]}
30... Ka8 {[%clk 0:00:08.7]} 31. Rxf7 {[%clk 0:00:07.9]} 31... Qxf7 {[%clk
0:00:08.9]} 32. a4 {[%clk 0:00:07.9]} 32... Qf1 {[%clk 0:00:08.4]} 33. a5 {[%clk
0:00:07.8]} 33... Rb8 {[%clk 0:00:05.9]} 34. a6 {[%clk 0:00:07.7]} 34... Qxa6
{[%clk 0:00:05.6]} 35. b3 {[%clk 0:00:07.4]} 35... Qe2 {[%clk 0:00:05.1]} 36.
Kb2 {[%clk 0:00:07.1]} 36... Qe4 {[%clk 0:00:04.7]} 37. Bf4 {[%clk 0:00:07.9]}
37... Qxd4+ {[%clk 0:00:04.7]} 38. Kb1 {[%clk 0:00:08.1]} 38... Rc8 {[%clk
0:00:04.7]} 39. Kc1 {[%clk 0:00:07.3]} 39... Qg1+ {[%clk 0:00:05.1]} 40. Kb2
{[%clk 0:00:07.6]} 40... Qd4+ {[%clk 0:00:05]} 41. Ka3 {[%clk 0:00:07.9]} 41...
Qg1 {[%clk 0:00:05.7]} 42. Qxe6 {[%clk 0:00:06.9]} 42... Qa1+ {[%clk 0:00:06]}
43. Kb4 {[%clk 0:00:07.1]} 43... c5+ {[%clk 0:00:05.9]} 44. Kb5 {[%clk
0:00:05.8]} 44... a6+ {[%clk 0:00:06.3]} 45. Kb6 {[%clk 0:00:05.7]} 45... Rc6+
{[%clk 0:00:06.8]} 46. Qxc6 {[%clk 0:00:05.3]} 46... bxc6 {[%clk 0:00:07.1]} 47.
Kxc6 {[%clk 0:00:06.2]} 47... Qf6+ {[%clk 0:00:07.3]} 48. Kxd5 {[%clk
0:00:07.1]} 48... Qxf4 {[%clk 0:00:07.3]} 49. Kxc5 {[%clk 0:00:07.5]} 49... Qd2
{[%clk 0:00:07.8]} 50. c4 {[%clk 0:00:08.4]} 50... Qc2 {[%clk 0:00:08.2]} 51. b4
{[%clk 0:00:08.7]} 51... Qb3 {[%clk 0:00:08.7]} 52. b5 {[%clk 0:00:08.9]} 52...
a5 {[%clk 0:00:09.1]} 53. b6 {[%clk 0:00:08.7]} 53... a4 {[%clk 0:00:09.6]} 54.
Kc6 {[%clk 0:00:08.7]} 54... a3 {[%clk 0:00:09.9]} 55. c5 {[%clk 0:00:09]} 55...
a2 {[%clk 0:00:10.2]} 56. Kc7 {[%clk 0:00:09.3]} 56... a1=Q {[%clk 0:00:10.3]}
57. c6 {[%clk 0:00:10.2]} 57... Qe5+ {[%clk 0:00:10.1]} 58. Kc8 {[%clk
0:00:09.9]} 58... Qbe6+ {[%clk 0:00:10]} 59. Kd8 {[%clk 0:00:09.6]} 59... Q5d6#
{[%clk 0:00:10.1]} 0-1